fUST/lending_fUST_20250302
["ID","MTS","AMOUNT","RATE_DAILY","PERIOD"]
[355022812,1740871842510,-823.44,0.00024657,2]
[355022813,1740871842521,-500.0,0.00024657,2]
[355022814,1740871842531,-1541.82,0.00024657,2]
[355022815,1740871842543,-2019.19,0.00024657,2]
[355022816,1740871842554,-500.0,0.00024657,2]
[355022817,1740871842564,-506.8324745,0.00024657,2]
[355022818,1740871842582,-582.41,0.00024657,2]
[355022819,1740871842592,-500.0,0.00024657,2]
[355022820,1740871842603,-403.85763096,0.00024657,2]
[355022821,1740871842613,-502.34,0.00024657,2]
[355022822,1740871842623,-1472.59,0.00024657,2]
[355022824,1740871842635,-500.0,0.00024657,2]
[355022826,1740871842645,-183805.88,0.00024657,2]
[355022828,1740871842655,-500.0,0.00024657,2]
[355022830,1740871842666,-500.0,0.00024657,2]
[355022832,1740871842676,-500.0,0.00024657,2]
[355022834,1740871842687,-602.95,0.00024657,2]
[355022835,1740871842700,-500.0,0.00024657,2]
[355022836,1740871842710,-500.0,0.00024657,2]
[355022837,1740871842721,-3373.87,0.00024657,2]
[355022838,1740871842732,-500.0,0.00024657,2]
[355022839,1740871842743,-500.0,0.00024657,2]
[355022840,1740871842754,-644.25,0.00024657,2]
[355022841,1740871842764,-1306.14,0.00024657,2]
[355022842,1740871842775,-500.0,0.00024657,2]
[355022843,1740871842786,-1359.95,0.00024657,2]
[355022844,1740871842797,-500.0,0.00024657,2]
[355022846,1740871842807,-500.0,0.00024657,2]
[355022847,1740871842818,-702.51,0.00024657,2]
[355022848,1740871842830,-3839.28,0.00024657,2]
[355022849,1740871842842,-500.0,0.00024657,2]
[355022850,1740871842854,-9807.93,0.00024657,2]
[355022851,1740871842866,-500.0,0.00024657,2]
[355022852,1740871842877,-281.91668551,0.00024657,2]
[355022853,1740871842888,-2092.44,0.00024657,2]
[355022854,1740871842900,-500.0,0.00024657,2]
[355022855,1740871842911,-500.0,0.00024657,2]
[355022856,1740871842923,-500.0,0.00024657,2]
[355022857,1740871842935,-1158.62,0.00024657,2]
[355022858,1740871842947,-500.0,0.00024657,2]
[355022859,1740871842958,-500.0,0.00024657,2]
[355022860,1740871842969,-3874.54,0.00024657,2]
[355022861,1740871842983,-500.0,0.00024657,2]
[355022862,1740871842994,-2006.91,0.00024657,2]
[355022863,1740871843004,-500.0,0.00024657,2]
[355022864,1740871843015,-500.0,0.00024657,2]
[355022865,1740871843026,-2203.45,0.00024657,2]
[355022866,1740871843037,-500.0,0.00024657,2]
[355022867,1740871843048,-500.0,0.00024657,2]
[355022868,1740871843059,-500.0,0.00024657,2]
[355022869,1740871843070,-500.0,0.00024657,2]
[355022870,1740871843081,-500.0,0.00024657,2]
[355022871,1740871843091,-500.0,0.00024657,2]
[355022872,1740871843102,-2599.29,0.00024657,2]
[355022873,1740871843113,-500.0,0.00024657,2]
[355022874,1740871843123,-500.0,0.00024657,2]
[355022875,1740871843134,-500.0,0.00024657,2]
[355022876,1740871843145,-500.0,0.00024657,2]
[355022877,1740871843155,-500.0,0.00024657,2]
[355022878,1740871843167,-5134.94,0.00024657,2]
[355022879,1740871843177,-4916.72,0.00024657,2]
[355022880,1740871843188,-604.17,0.00024657,2]
[355022881,1740871843199,-500.0,0.00024657,2]
[355022882,1740871843211,-500.0,0.00024657,2]
[355022883,1740871843221,-508.18,0.00024657,2]
[355022884,1740871843232,-986.62,0.00024657,2]
[355022885,1740871843243,-500.0,0.00024657,2]
[355022886,1740871843254,-1092.06,0.00024657,2]
[355022887,1740871843264,-1052.74,0.00024657,2]
[355022889,1740871843275,-1532.95,0.00024657,2]
[355022890,1740871843285,-1438.03,0.00024657,2]
[355022891,1740871843296,-500.0,0.00024657,2]
[355022892,1740871843307,-500.0,0.00024657,2]
[355022893,1740871843319,-224.66557078,0.00024657,2]
[355022894,1740871843337,-727.18,0.00024657,2]
[355022895,1740871843348,-500.0,0.00024657,2]
[355022896,1740871843362,-500.0,0.00024657,2]
[355022897,1740871843373,-1892.07,0.00024657,2]
[355022898,1740871843385,-1232.38,0.00024657,2]
[355022899,1740871843396,-500.0,0.00024657,2]
[355022900,1740871843407,-1007.81,0.00024657,2]
[355022901,1740871843418,-500.0,0.00024657,2]
[355022903,1740871843429,-742.07,0.00024657,2]
[355022904,1740871843441,-754.91,0.00024657,2]
[355022905,1740871843452,-500.0,0.00024657,2]
[355022906,1740871843464,-1344.18,0.00024657,2]
[355022907,1740871843475,-500.0,0.00024657,2]
[355022908,1740871843489,-500.0,0.00024657,2]
[355022909,1740871843500,-500.0,0.00024657,2]
[355022910,1740871843511,-500.0,0.00024657,2]
[355022911,1740871843523,-500.0,0.00024657,2]
[355022912,1740871843533,-11100.23,0.00024657,2]
[355022913,1740871843544,-833.0,0.00024657,2]
[355022914,1740871843555,-500.0,0.00024657,2]
[355022915,1740871843567,-543.31,0.00024657,2]
[355022916,1740871843578,-626.2,0.00024657,2]
[355022917,1740871843589,-500.0,0.00024657,2]
[355022918,1740871843600,-500.0,0.00024657,2]
[355022919,1740871843610,-648.99,0.00024657,2]
[355022920,1740871843620,-500.0,0.00024657,2]
[355022921,1740871843630,-500.0,0.00024657,2]
[355022922,1740871843641,-500.0,0.00024657,2]
[355022923,1740871843652,-513.72178489,0.00024657,2]
[355022924,1740871843663,-500.0,0.00024657,2]
[355022925,1740871843673,-500.0,0.00024657,2]
[355022926,1740871843684,-500.0,0.00024657,2]
[355022927,1740871843695,-500.0,0.00024657,2]
[355022928,1740871843705,-1000.0,0.00024657,2]
[355022929,1740871843716,-500.0,0.00024657,2]
[355022930,1740871843727,-500.0,0.00024657,2]
[355022931,1740871843738,-747.56,0.00024657,2]
[355022932,1740871843748,-500.0,0.00024657,2]
[355022933,1740871843759,-500.0,0.00024657,2]
[355022934,1740871843769,-1353.51,0.00024657,2]
[355022935,1740871843780,-529.16,0.00024657,2]
[355022936,1740871843791,-500.0,0.00024657,2]
[355022937,1740871843801,-14334.8,0.00024657,2]
[355022938,1740871843812,-3006.48,0.00024657,2]
[355022939,1740871843823,-500.0,0.00024657,2]
[355022940,1740871843835,-500.0,0.00024657,2]
[355022941,1740871844104,-500.0,0.00024657,2]
[355022942,1740871844115,-6622.82,0.00024657,2]
[355022943,1740871844125,-500.0,0.00024657,2]
[355022944,1740871844136,-500.0,0.00024657,2]
[355022945,1740871844146,-32115.56,0.00024657,2]
[355022946,1740871844155,-1126.44,0.00024657,2]
[355022947,1740871844166,-500.0,0.00024657,2]
[355022948,1740871844178,-500.0,0.00024657,2]
[355022949,1740871844191,-1063.71,0.00024657,5]
[355022950,1740871844201,-500.0,0.00024657,2]
[355022952,1740871844211,-1511.47,0.00024657,2]
[355022953,1740871844221,-500.0,0.00024657,2]
[355022954,1740871844230,-500.0,0.00024657,2]
[355022955,1740871844240,-6982.06,0.00024657,2]
[355022956,1740871844250,-500.0,0.00024657,2]
[355022957,1740871844259,-500.0,0.00024657,2]
[355022958,1740871844269,-1402.02,0.00024657,2]
[355022959,1740871844279,-743.57,0.00024657,2]
[355022960,1740871844288,-799.4,0.00024657,2]
[355022961,1740871844298,-500.0,0.00024657,2]
[355022962,1740871844308,-505.32427382,0.00024657,2]
[355022963,1740871844317,-500.0,0.00024657,2]
[355022964,1740871844327,-500.0,0.00024657,2]
[355022965,1740871844337,-500.0,0.00024657,2]
[355022966,1740871844347,-2095.73,0.00024657,2]
[355022967,1740871844356,-500.0,0.00024657,2]
[355022968,1740871844366,-500.0,0.00024657,2]
[355022969,1740871844375,-4484.57,0.00024657,2]
[355022970,1740871844385,-500.0,0.00024657,2]
[355022971,1740871844395,-3261.51,0.00024657,2]
[355022972,1740871844405,-500.0,0.00024657,2]
[355022973,1740871844415,-828.89,0.00024657,2]
[355022974,1740871844424,-500.0,0.00024657,2]
[355022975,1740871844435,-500.0,0.00024657,2]
[355022976,1740871844446,-500.0,0.00024657,2]
[355022977,1740871844456,-532.41,0.00024657,2]
[355022978,1740871844468,-500.0,0.00024657,2]
[355022979,1740871844479,-1708.49,0.00024657,2]
[355022980,1740871844493,-2100.84,0.00024657,2]
[355022981,1740871844503,-500.0,0.00024657,2]
[355022982,1740871844513,-500.0,0.00024657,2]
[355022983,1740871844523,-500.0,0.00024657,2]
[355022984,1740871844533,-228.35587799,0.00024657,2]
[355022985,1740871844543,-500.0,0.00024657,2]
[355022986,1740871844552,-500.0,0.00024657,2]
[355022987,1740871844562,-1484.68,0.00024657,2]
[355022988,1740871844572,-500.0,0.00024657,2]
[355022989,1740871844581,-500.0,0.00024657,2]
[355022990,1740871844591,-1058.76,0.00024657,2]
[355022991,1740871844601,-983.06,0.00024657,2]
[355022992,1740871844611,-1303.04,0.00024657,2]
[355022993,1740871844620,-500.0,0.00024657,2]
[355022994,1740871844630,-500.0,0.00024657,2]
[355022995,1740871844640,-500.0,0.00024657,2]
[355022996,1740871844649,-500.0,0.00024657,2]
[355022997,1740871844659,-500.0,0.00024657,2]
[355022998,1740871844669,-500.0,0.00024657,2]
[355022999,1740871844679,-500.0,0.00024657,2]
[355023000,1740871844688,-500.0,0.00024657,2]
[355023001,1740871844698,-500.0,0.00024657,2]
[355023002,1740871844708,-500.0,0.00024657,2]
[355023003,1740871844717,-500.0,0.00024657,2]
[355023004,1740871844727,-509.27511864,0.00024657,2]
[355023005,1740871844737,-1109.67,0.00024657,2]
[355023006,1740871844747,-500.0,0.00024657,2]
[355023007,1740871844756,-4388.46,0.00024657,2]
[355023008,1740871844767,-500.0,0.00024657,2]
[355023009,1740871844776,-657.18,0.00024657,2]
[355023010,1740871844786,-500.0,0.00024657,2]
[355023011,1740871844796,-585.92,0.00024657,2]
[355023012,1740871844807,-1375.28,0.00024657,2]
[355023013,1740871844817,-500.0,0.00024657,2]
[355023014,1740871844827,-2985.63,0.00024657,2]
[355023015,1740871844836,-500.0,0.00024657,2]
[355023016,1740871844846,-500.0,0.00024657,2]
[355023017,1740871844856,-1272.27,0.00024657,2]
[355023018,1740871844866,-500.0,0.00024657,2]
[355023019,1740871844876,-155.1862099,0.00024657,2]
[355023020,1740871844886,-344.4,0.00024657,2]
[355023021,1740871844896,-5567.3,0.00024657,2]
[355023022,1740871844906,-889.82,0.00024657,2]
[355023023,1740871844915,-500.0,0.00024657,2]
[355023024,1740871844925,-500.0,0.00024657,2]
[355023025,1740871844935,-500.0,0.00024657,2]
[355023026,1740871844945,-500.0,0.00024657,2]
[355023027,1740871844955,-1021.09,0.00024657,2]
[355023028,1740871844965,-521.65,0.00024657,2]
[355023029,1740871844974,-500.0,0.00024657,2]
[355023030,1740871844984,-500.0,0.00024657,2]
[355023031,1740871844994,-501.52044205,0.00024657,2]
[355023032,1740871845004,-509.99542048,0.00024657,2]
[355023033,1740871845014,-500.0,0.00024657,2]
[355023034,1740871845024,-500.0,0.00024657,2]
[355023035,1740871845034,-500.0,0.00024657,2]
[355023036,1740871845045,-12909.27,0.00024657,2]
[355023037,1740871845055,-500.0,0.00024657,2]
[355023038,1740871845066,-500.0,0.00024673,2]
[355023039,1740871845076,-400.79280236,0.00024673,2]
[355023040,1740871845086,-500.0,0.00024673,2]
[355023041,1740871845096,-500.0,0.00024673,2]
[355023042,1740871845106,-500.0,0.00024673,2]
[355023043,1740871845116,-500.0,0.00024673,2]
[355023044,1740871845126,-483.69148931,0.00024673,2]
[355023045,1740871845135,-500.0,0.00024673,2]
[355023046,1740871845145,-500.0,0.00024673,2]
[355023047,1740871845155,-500.0,0.00024673,2]
[355023048,1740871845166,-500.0,0.00024673,2]
[355023049,1740871845175,-464.28565197,0.00024673,2]
[355023050,1740871845185,-500.0,0.00024673,2]
[355023051,1740871845196,-500.0,0.00024673,2]
[355023052,1740871845206,-500.0,0.00024673,2]
[355023053,1740871845216,-500.0,0.00024673,2]
[355023054,1740871845226,-602.33728723,0.00024673,2]
[355023055,1740871845236,-500.0,0.00024673,2]
[355023056,1740871845246,-500.0,0.00024673,2]
[355023057,1740871845255,-251.58457217,0.00024673,2]
[355023058,1740871845265,-500.0,0.00024673,2]
[355023059,1740871845275,-500.0,0.00024673,2]
[355023060,1740871845284,-500.0,0.00024673,2]
[355023061,1740871845295,-388.21,0.000247,7]
[355023062,1740871845305,-155.180363,0.00024794,4]
[355023063,1740871845315,-7981.45941586,0.00024831,2]
[355023064,1740871845325,-15999.99999901,0.00024899,2]
[355023065,1740871845335,-737.287179,0.000249,2]
[355023066,1740871845345,-500.0,0.00024931,2]
[355023067,1740871845354,-500.0,0.00024931,2]
[355023068,1740871845364,-500.0,0.00024931,2]
[355023069,1740871845373,-500.0,0.00024931,2]
[355023070,1740871845383,-744.23,0.00024931,2]
[355023071,1740871845393,-500.0,0.00024931,2]
[355023072,1740871845402,-557.83,0.00024931,2]
[355023073,1740871845412,-500.0,0.00024931,2]
[355023074,1740871845422,-500.0,0.00024931,2]
[355023075,1740871845432,-500.0,0.00024931,2]
[355023076,1740871845441,-500.0,0.00024931,2]
[355023077,1740871845452,-722.26,0.00024931,2]
[355023078,1740871845465,-525.49,0.00024931,2]
[355023079,1740871845476,-565.16,0.00024931,2]
[355023080,1740871845486,-500.0,0.00024931,2]
[355023081,1740871845495,-500.0,0.00024931,2]
[355023082,1740871845505,-500.0,0.00024931,2]
[355023083,1740871845516,-515.69,0.00024931,2]
[355023084,1740871845526,-909.54,0.00024931,2]
[355023085,1740871845535,-500.0,0.00024931,2]
[355023086,1740871845545,-861.5,0.00024931,2]
[355023087,1740871845555,-500.0,0.00024931,2]
[355023088,1740871845566,-500.0,0.00024931,2]
[355023089,1740871845575,-500.0,0.00024931,2]
[355023090,1740871845584,-500.0,0.00024931,2]
[355023091,1740871845594,-500.0,0.00024931,2]
[355023092,1740871845604,-500.0,0.00024931,2]
[355023093,1740871845613,-712.91,0.00024931,2]
[355023094,1740871845623,-500.0,0.00024931,2]
[355023095,1740871845632,-500.0,0.00024931,2]
[355023096,1740871845642,-500.0,0.00024931,2]
[355023097,1740871845652,-500.0,0.00024931,2]
[355023098,1740871845663,-1030.35,0.00024931,2]
[355023099,1740871845673,-500.0,0.00024931,2]
[355023100,1740871845683,-500.0,0.00024931,2]
[355023101,1740871845692,-500.0,0.00024931,2]
[355023102,1740871845703,-500.0,0.00024931,2]
[355023103,1740871845712,-500.0,0.00024931,2]
[355023104,1740871845722,-500.0,0.00024931,2]
[355023105,1740871845732,-736.01,0.00024931,2]
[355023106,1740871845742,-500.0,0.00024931,2]
[355023107,1740871845753,-500.0,0.00024931,2]
[355023108,1740871845763,-500.0,0.00024931,2]
[355023109,1740871845772,-364.97873975,0.00024931,2]
[355023110,1740871845782,-500.0,0.00024931,2]
[355023111,1740871845791,-883.58,0.00024931,2]
[355023112,1740871845802,-500.0,0.00024931,2]
[355023113,1740871845811,-500.0,0.00024931,2]
[355023114,1740871845821,-500.0,0.00024931,2]
[355023115,1740871845831,-500.0,0.00024931,2]
[355023116,1740871845841,-586.74,0.00024931,2]
[355023117,1740871845851,-500.0,0.00024931,2]
[355023118,1740871845861,-500.0,0.00024931,2]
[355023119,1740871845871,-981.91,0.00024931,2]
[355023120,1740871845881,-500.0,0.00024931,2]
[355023121,1740871845891,-542.92,0.00024931,2]
[355023122,1740871845901,-500.0,0.00024931,2]
[355023123,1740871845911,-500.0,0.00024931,2]
[355023125,1740871845921,-500.0,0.00024931,2]
[355023127,1740871845931,-500.0,0.00024931,2]
[355023129,1740871845941,-500.0,0.00024931,2]
[355023131,1740871845951,-760.51,0.00024931,2]
[355023132,1740871845961,-500.0,0.00024931,2]
[355023133,1740871845971,-633.8,0.00024931,2]
[355023134,1740871845981,-1509.12,0.00024931,2]
[355023135,1740871845991,-500.0,0.00024931,2]
[355023136,1740871846001,-500.0,0.00024931,2]
[355023137,1740871846011,-500.0,0.00024931,2]
[355023138,1740871846020,-500.0,0.00024931,2]
[355023139,1740871846030,-500.0,0.00024931,2]
[355023140,1740871846040,-500.0,0.00024931,2]
[355023141,1740871846049,-500.0,0.00024931,2]
[355023142,1740871846059,-500.0,0.00024931,2]
[355023143,1740871846069,-500.0,0.00024931,2]
[355023144,1740871846079,-500.0,0.00024931,2]
[355023145,1740871846088,-500.0,0.00024931,2]
[355023146,1740871846097,-787.18,0.00024931,2]
[355023147,1740871846107,-500.0,0.00024931,2]
[355023148,1740871846116,-500.0,0.00024931,2]
[355023149,1740871846125,-500.0,0.00024931,2]
[355023150,1740871846135,-500.0,0.00024931,2]
[355023151,1740871846144,-525.8,0.00024931,2]
[355023152,1740871846154,-500.0,0.00024931,2]
[355023153,1740871846163,-500.0,0.00024931,2]
[355023154,1740871846173,-877.06,0.00024931,2]
[355023155,1740871846182,-500.0,0.00024931,2]
[355023156,1740871846192,-531.82,0.00024931,2]
[355023157,1740871846203,-292.98527967,0.00024931,2]
[355023158,1740871846213,-500.0,0.00024931,2]
[355023159,1740871846223,-500.0,0.00024931,2]
[355023160,1740871846232,-500.0,0.00024931,2]
[355023161,1740871846242,-566.46,0.00024931,2]
[355023162,1740871846251,-500.0,0.00024931,2]
[355023163,1740871846261,-500.0,0.00024931,2]
[355023164,1740871846271,-500.0,0.00024931,2]
[355023165,1740871846280,-500.0,0.00024931,2]
[355023166,1740871846290,-500.0,0.00024931,2]
[355023167,1740871846300,-500.0,0.00024931,2]
[355023168,1740871846309,-500.0,0.00024931,2]
[355023169,1740871846319,-1113.65,0.00024931,2]
[355023170,1740871846329,-500.0,0.00024931,2]
[355023171,1740871846339,-500.0,0.00024931,2]
[355023172,1740871846348,-218.81770486,0.00024931,2]
[355023173,1740871846357,-500.0,0.00024931,2]
[355023174,1740871846367,-1765.42,0.00024931,2]
[355023175,1740871846377,-1205.65,0.00024931,2]
[355023176,1740871846386,-500.0,0.00024931,2]
[355023177,1740871846396,-500.0,0.00024931,2]
[355023178,1740871846405,-564.0,0.00024931,2]
[355023179,1740871846415,-500.0,0.00024931,2]
[355023180,1740871846425,-500.0,0.00024931,2]
[355023181,1740871846434,-500.0,0.00024931,2]
[355023182,1740871846515,-500.0,0.00024931,2]
[355023183,1740871846527,-500.0,0.00024931,2]
[355023184,1740871846536,-1721.61,0.00024931,2]
[355023185,1740871846547,-302.51797588,0.00024931,2]
[355023186,1740871846556,-500.0,0.00024931,2]
[355023187,1740871846567,-500.0,0.00024931,2]
[355023188,1740871846576,-500.0,0.00024931,2]
[355023189,1740871846586,-773.73,0.00024931,2]
[355023190,1740871846596,-1643.48,0.00024931,2]
[355023191,1740871846606,-1109.48,0.00024931,2]
[355023192,1740871846615,-1045.74,0.00024931,2]
[355023193,1740871846624,-500.0,0.00024931,2]
[355023194,1740871846634,-500.0,0.00024931,2]
[355023195,1740871846643,-500.0,0.00024931,2]
[355023196,1740871846652,-500.0,0.00024931,2]
[355023197,1740871846662,-500.0,0.00024931,2]
[355023198,1740871846671,-1612.61,0.00024931,2]
[355023199,1740871846681,-740.69,0.00024931,2]
[355023200,1740871846692,-500.0,0.00024931,2]
[355023201,1740871846702,-500.0,0.00024931,2]
[355023202,1740871846711,-500.0,0.00024931,2]
[355023203,1740871846721,-500.0,0.00024931,2]
[355023204,1740871846731,-500.0,0.00024931,2]
[355023205,1740871846740,-500.0,0.00024931,2]
[355023206,1740871846750,-500.0,0.00024931,2]
[355023207,1740871846760,-500.0,0.00024931,2]
[355023208,1740871846769,-500.0,0.00024931,2]
[355023209,1740871846779,-500.0,0.00024931,2]
[355023210,1740871846788,-618.87,0.00024931,2]
[355023211,1740871846798,-364.43226031,0.00024931,2]
[355023212,1740871846807,-500.0,0.00024931,2]
[355023213,1740871846817,-500.0,0.00024931,2]
[355023214,1740871846826,-500.0,0.00024931,2]
[355023215,1740871846836,-500.0,0.00024931,2]
[355023216,1740871846846,-1022.12,0.00024931,2]
[355023217,1740871846856,-500.0,0.00024931,2]
[355023218,1740871846866,-689.02,0.00024931,2]
[355023219,1740871846876,-500.0,0.00024931,2]
[355023220,1740871846886,-500.0,0.00024931,2]
[355023221,1740871846896,-500.0,0.00024931,2]
[355023222,1740871846906,-1274.63,0.00024931,2]
[355023223,1740871846915,-678.6,0.00024931,2]
[355023224,1740871846925,-500.0,0.00024931,2]
[355023225,1740871846934,-526.48143405,0.00024931,2]
[355023226,1740871846945,-500.0,0.00024931,2]
[355023227,1740871846955,-500.0,0.00024931,2]
[355023228,1740871846964,-523.8,0.00024931,2]
[355023229,1740871846974,-1111.8,0.00024931,2]
[355023230,1740871846984,-500.0,0.00024931,2]
[355023231,1740871846993,-500.0,0.00024931,2]
[355023232,1740871847003,-518.70008818,0.00024931,2]
[355023233,1740871847013,-500.0,0.00024931,2]
[355023234,1740871847022,-599.62,0.00024931,2]
[355023235,1740871847032,-500.0,0.00024931,2]
[355023236,1740871847041,-500.0,0.00024931,2]
[355023237,1740871847051,-529.55,0.00024931,2]
[355023238,1740871847060,-500.0,0.00024931,2]
[355023239,1740871847070,-500.0,0.00024931,2]
[355023240,1740871847079,-500.0,0.00024931,2]
[355023241,1740871847089,-500.0,0.00024931,2]
[355023242,1740871847099,-2843.28,0.00024931,2]
[355023243,1740871847109,-500.0,0.00024931,2]
[355023244,1740871847118,-500.0,0.00024931,2]
[355023245,1740871847128,-500.0,0.00024931,2]
[355023246,1740871847137,-500.0,0.00024931,2]
[355023247,1740871847147,-2351.18,0.00024931,2]
[355023248,1740871847157,-500.0,0.00024931,2]
[355023249,1740871847167,-500.0,0.00024931,2]
[355023250,1740871847177,-500.0,0.00024931,2]
[355023251,1740871847187,-500.0,0.00024931,2]
[355023252,1740871847197,-500.0,0.00024931,2]
[355023253,1740871847207,-500.0,0.00024931,2]
[355023254,1740871847217,-1997.84,0.00024931,2]
[355023255,1740871847226,-1324.27,0.00024931,2]
[355023256,1740871847236,-500.0,0.00024931,2]
[355023257,1740871847245,-500.0,0.00024931,2]
[355023258,1740871847255,-500.0,0.00024931,2]
[355023259,1740871847264,-500.0,0.00024931,2]
[355023260,1740871847274,-2011.7,0.00024931,2]
[355023261,1740871847283,-500.0,0.00024931,2]
[355023262,1740871847292,-1235.49,0.00024931,2]
[355023263,1740871847302,-500.0,0.00024931,2]
[355023264,1740871847311,-515.26693993,0.00024931,2]
[355023265,1740871847321,-925.75,0.00024931,2]
[355023266,1740871847330,-500.0,0.00024931,2]
[355023267,1740871847339,-500.0,0.00024931,2]
[355023268,1740871847348,-500.0,0.00024931,2]
[355023269,1740871847358,-500.0,0.00024931,2]
[355023270,1740871847368,-500.0,0.00024931,2]
[355023271,1740871847377,-500.0,0.00024931,2]
[355023272,1740871847387,-500.0,0.00024931,2]
[355023273,1740871847396,-500.0,0.00024931,2]
[355023274,1740871847405,-277.7882721,0.00024931,2]
[355023275,1740871847414,-543.92248431,0.00024931,2]
[355023276,1740871847423,-1105.9,0.00024931,2]
[355023277,1740871847433,-269.18299516,0.00024931,2]
[355023278,1740871847442,-500.0,0.00024931,2]
[355023279,1740871847452,-500.0,0.00024931,2]
[355023280,1740871847464,-1286.58,0.00024931,2]
[355023281,1740871847475,-629.62,0.00024931,2]
[355023282,1740871847484,-500.0,0.00024931,2]
[355023283,1740871847493,-500.0,0.00024931,2]
[355023284,1740871847503,-500.0,0.00024931,2]
[355023285,1740871847513,-500.0,0.00024931,2]
[355023286,1740871847523,-500.0,0.00024931,2]
[355023287,1740871847532,-500.0,0.00024931,2]
[355023288,1740871847541,-500.0,0.00024931,2]
[355023289,1740871847551,-1745.29,0.00024931,2]
[355023290,1740871847560,-500.0,0.00024931,2]
[355023291,1740871847570,-1097.09,0.00024931,2]
[355023292,1740871847579,-500.0,0.00024931,2]
[355023293,1740871847588,-500.0,0.00024931,2]
[355023294,1740871847597,-500.0,0.00024931,2]
[355023295,1740871847606,-593.01578155,0.00024931,2]
[355023296,1740871847615,-508.06437309,0.00024931,2]
[355023297,1740871847625,-725.52,0.00024931,2]
[355023298,1740871847634,-500.0,0.00024931,2]
[355023299,1740871847644,-500.0,0.00024931,2]
[355023300,1740871847654,-516.72,0.00024931,2]
[355023301,1740871847664,-994.68,0.00024931,2]
[355023302,1740871847673,-500.0,0.00024931,2]
[355023303,1740871847682,-675.28,0.00024931,2]
[355023304,1740871847692,-500.0,0.00024931,2]
[355023305,1740871847702,-196.14217479,0.00024931,2]
[355023306,1740871847712,-410.346135,0.00024931,2]
[355023307,1740871847721,-945.9,0.00024931,2]
[355023308,1740871847732,-500.0,0.00024931,2]
[355023309,1740871847741,-500.0,0.00024931,2]
[355023310,1740871847751,-508.01824028,0.00024931,2]
[355023311,1740871847761,-914.08,0.00024931,2]
[355023312,1740871847770,-500.0,0.00024931,2]
[355023313,1740871847779,-775.44,0.00024931,2]
[355023314,1740871847789,-2711.9,0.00024931,2]
[355023315,1740871847798,-500.0,0.00024931,2]
[355023316,1740871847807,-841.43,0.00024931,2]
[355023317,1740871847817,-500.0,0.00024931,2]
[355023318,1740871847826,-1290.45,0.00024931,2]
[355023319,1740871847837,-1121.93,0.00024931,2]
[355023320,1740871847848,-500.0,0.00024931,2]
[355023321,1740871847858,-500.0,0.00024931,2]
[355023322,1740871847867,-500.0,0.00024931,2]
[355023323,1740871847876,-500.0,0.00024931,2]
[355023324,1740871847886,-500.0,0.00024931,2]
[355023325,1740871847896,-500.0,0.00024931,2]